bitfinex/quotes_SOLUSD_20250928
["timestamp","ask_amount","ask_price","bid_price","bid_amount"]
[1759026240612,1.31746339,202.29,202.26,43.54411125]
[1759026240816,3.34019417,202.28,202.26,117.59496103]
[1759026240989,1.97746339,202.29,202.26,117.59496103]
[1759026241191,3.34019417,202.28,202.26,117.59496103]
[1759026241509,1.31746339,202.29,202.26,84.63908755]
[1759026241805,3.34093006,202.28,202.26,122.53908755]
[1759026242009,1.31746339,202.29,202.26,122.53908755]
[1759026242209,4.65839345,202.28,202.26,122.53908755]
[1759026242397,1.31746339,202.28,202.26,122.53908755]
[1759026242799,1.31746339,202.28,202.26,117.59496103]
[1759026243696,1.31746339,202.27,202.26,78.99496103]
[1759026243899,5.31796128,202.27,202.26,78.99496103]
[1759026245298,1.31746339,202.27,202.26,78.99496103]
[1759026246792,1.31746339,202.27,202.26,79.69496103]
[1759026247112,1.31746339,202.28,202.26,79.69496103]
[1759026247312,1.31746339,202.29,202.27,0.7]
[1759026247616,3.34014155,202.28,202.27,0.7]
[1759026249017,1.31746339,202.28,202.26,79.69496103]
[1759026249217,1.31746339,202.27,202.26,79.69496103]
[1759026249518,1.31746339,202.28,202.26,79.69496103]
[1759026251195,1.31746339,202.28,202.27,0.66]
[1759026251510,3.33952234,202.29,202.27,38.56]
[1759026251825,1.31746339,202.3,202.28,0.66]
[1759026252006,3.33952098,202.29,202.28,0.66]
[1759026252208,3.33952098,202.29,202.28,79.65496103]
[1759026254022,1.31746339,202.3,202.28,79.65496103]
[1759026255341,1.31746339,202.3,202.29,0.66]
[1759026255622,1.31746339,202.3,202.29,79.65496103]
[1759026256395,1.31746339,202.3,202.29,78.99496103]
[1759026259399,1.31746339,202.3,202.29,79.65496103]
[1759026262025,1.31746339,202.3,202.29,82.99101619]
[1759026264709,1.41746339,202.31,202.29,82.99101619]
[1759026264912,1.41746339,202.31,202.3,0.66]
[1759026265226,1.41746339,202.31,202.3,79.65496103]
[1759026265429,1.41746339,202.31,202.3,83.68044961]
[1759026266726,2.15736793,202.31,202.3,83.68044961]
[1759026268912,2.15736793,202.31,202.3,83.02044961]
[1759026269110,0.1,202.31,202.3,83.02044961]
[1759026269417,2.15736793,202.31,202.3,83.02044961]
[1759026269800,2.15736793,202.31,202.3,83.68044961]
[1759026270012,0.1,202.31,202.3,83.68044961]
[1759026270512,0.1,202.31,202.3,121.56044961]
[1759026271132,0.1,202.31,202.3,83.68044961]
[1759026271306,0.1,202.31,202.3,121.56044961]
[1759026271509,0.1,202.31,202.3,126.50360334]
[1759026273628,2.84736793,202.31,202.3,83.02044961]
[1759026274828,2.84736793,202.31,202.3,78.99496103]
[1759026275628,0.1,202.31,202.3,78.99496103]
[1759026275828,2.15736793,202.31,202.3,78.99496103]
[1759026276031,2.15736793,202.31,202.3,93.87259251]
[1759026277032,2.84736793,202.31,202.3,78.99496103]
[1759026277213,0.1,202.31,202.3,82.98886418]
[1759026279035,2.15736793,202.31,202.3,82.98886418]
[1759026279548,6.18215268,202.31,202.3,78.99496103]
[1759026280047,11.12506207,202.31,202.3,78.99496103]
[1759026283225,9.06769414,202.31,202.3,78.99496103]
[1759026283432,11.12506207,202.31,202.3,78.99496103]
[1759026283942,13.59559401,202.3,202.23,78.99496103]
[1759026284134,2.05736793,202.24,202.23,93.87702071]
[1759026284530,2.74736793,202.24,202.21,78.99496103]
[1759026284846,2.05736793,202.22,202.21,94.53849736]
[1759026285054,37.88,202.26,202.21,94.53849736]
[1759026285344,5.39326667,202.26,202.22,0.66]
[1759026285522,2.05736793,202.27,202.22,20.48550077]
[1759026285722,2.05736793,202.27,202.23,38.54]
[1759026285941,2.05736793,202.27,202.24,0.66]
[1759026286452,2.05736793,202.26,202.25,14.87984525]
[1759026286642,2.05736793,202.26,202.25,15.53984525]
[1759026287723,2.05736793,202.28,202.25,94.53480628]
[1759026287923,2.05736793,202.28,202.26,0.66]
[1759026289943,2.05736793,202.27,202.25,78.99496103]
[1759026290139,2.05736793,202.26,202.25,78.99496103]
[1759026290342,2.05736793,202.26,202.25,79.67496103]
[1759026290747,2.05736793,202.26,202.25,84.71797133]
[1759026291618,2.05736793,202.27,202.25,84.71797133]
[1759026291821,2.05736793,202.27,202.26,0.68]
[1759026292945,3.43589874,202.31,202.28,78.99496103]
[1759026293159,0.1,202.31,202.29,38.56]
[1759026293323,0.1,202.31,202.3,37.9]
[1759026293543,0.1,202.31,202.3,252.27496103]
[1759026293930,0.1,202.31,202.3,79.67496103]
[1759026294144,0.1,202.31,202.3,119.63232896]
[1759026294638,0.1,202.31,202.3,121.68969689]
[1759026295031,0.1,202.31,202.3,83.78969689]
[1759026295237,0.1,202.31,202.3,121.70969689]
[1759026295945,0.1,202.31,202.3,83.78969689]
[1759026296149,1e-08,202.31,202.3,275.42276]
[1759026296349,1e-08,202.31,202.3,274.92844463]
[1759026296536,1e-08,202.31,202.3,274.94844463]
[1759026297534,1e-08,202.31,202.3,237.02844463]
[1759026297734,1e-08,202.31,202.3,274.94844463]
[1759026298241,1e-08,202.31,202.3,237.02844463]
[1759026298432,1e-08,202.31,202.3,274.94844463]
[1759026299652,1e-08,202.31,202.3,274.92844463]
[1759026300129,0.1,202.35,202.33,4.94242079]
[1759026300329,0.1,202.35,202.33,6.99978872]
[1759026300547,0.1,202.35,202.34,37.9]
[1759026300751,0.1,202.35,202.34,40.56260266]
[1759026300930,0.1,202.35,202.34,2.66260266]
[1759026301133,0.1,202.35,202.34,40.56260266]
[1759026301340,0.1,202.35,202.34,7.60477919]
[1759026301543,0.1,202.35,202.34,45.50477919]
[1759026301742,0.1,202.35,202.34,7.60477919]
[1759026301945,0.1,202.35,202.34,45.50477919]
[1759026302561,0.1,202.35,202.34,47.56214712]
[1759026302759,0.1,202.35,202.34,45.50477919]
[1759026303256,0.1,202.35,202.34,7.60477919]
[1759026303641,0.1,202.35,202.34,45.48477919]
[1759026303951,0.1,202.35,202.34,7.60477919]
[1759026304257,0.1,202.35,202.34,45.48477919]
[1759026304855,0.1,202.35,202.34,7.60477919]
[1759026305061,0.1,202.35,202.34,45.48477919]
[1759026306154,2.05736793,202.39,202.38,78.69496102]
[1759026306358,2.76736793,202.39,202.38,213.39496102]
[1759026306745,2.76736793,202.39,202.38,218.33445865]
[1759026309663,8.89635903,202.44,202.38,218.33445865]
[1759026309869,2.05736793,202.39,202.38,218.33445865]
[1759026310163,2.74736793,202.39,202.38,213.39496102]
[1759026310349,2.74736793,202.39,202.38,222.29132005]
[1759026311363,2.74736793,202.39,202.38,213.39496102]
[1759026314947,2.74736793,202.39,202.38,78.69496102]
[1759026315669,7.68832351,202.39,202.38,78.69496102]
[1759026318666,9.67955638,202.42,202.38,78.69496102]
[1759026318962,0.69,202.42,202.38,79.38496102]
[1759026319164,0.69,202.42,202.39,14.87025701]
[1759026319756,0.69,202.42,202.39,15.56025701]
[1759026320165,2.05736793,202.4,202.39,15.56025701]
[1759026320347,2.05736793,202.4,202.39,99.17617361]
[1759026320548,2.05736793,202.41,202.39,99.17617361]
[1759026320861,2.05736793,202.42,202.4,0.67]
[1759026321075,2.05736793,202.42,202.4,79.36496102]
[1759026321364,2.05736793,202.42,202.41,0.67]
[1759026321571,2.05736793,202.42,202.41,15.53804609]
[1759026321756,2.05736793,202.42,202.41,0.67]
[1759026322853,2.05736793,202.42,202.4,78.69496102]
[1759026323054,2.05736793,202.41,202.4,78.69496102]
[1759026323668,2.05736793,202.41,202.4,79.36496102]
[1759026324056,2.05736793,202.41,202.4,78.69496102]
[1759026325155,2.75736793,202.41,202.4,78.69496102]
[1759026325353,2.05736793,202.41,202.4,78.69496102]
[1759026326683,1.31587015,202.41,202.4,78.69496102]
[1759026327389,0.7,202.43,202.4,78.69496102]
[1759026327570,1.31587015,202.41,202.4,78.69496102]
[1759026327885,0.81587015,202.41,202.4,78.69496102]
[1759026328987,0.7,202.45,202.4,79.36496102]
[1759026329191,1.31587015,202.41,202.4,79.36496102]
[1759026332783,7.27935075,202.41,202.4,78.69496102]
[1759026332987,6.57935075,202.41,202.4,78.69496102]
[1759026334778,7.27935075,202.41,202.4,78.69496102]
[1759026335078,12.21981811,202.41,202.4,40.01508297]
[1759026335277,7.27935075,202.41,202.4,40.01508297]
[1759026335483,45.17935075,202.41,202.4,40.01508297]
[1759026335675,15.53807875,202.41,202.4,40.01508297]
[1759026335978,12.21981811,202.41,202.4,1.33520492]
[1759026336874,12.21981811,202.41,202.34,80.5]
[1759026336875,24.57098653,202.41,202.34,80.5]
[1759026337086,1.31587015,202.35,202.34,80.5]
[1759026337380,1.31587015,202.35,202.34,81.17]
[1759026339884,1.31587015,202.35,202.34,80.5]
[1759026340297,1.31587015,202.35,202.34,81.17]
[1759026350685,1.31587015,202.35,202.34,80.5]
[1759026350874,1.31587015,202.35,202.34,81.17]
[1759026352993,2.03587015,202.35,202.34,80.5]
[1759026353198,1.31587015,202.35,202.34,80.5]
[1759026355903,1.31587015,202.35,202.34,81.17]
[1759026362385,3.33346249,202.38,202.34,81.17]
[1759026362699,1.31587015,202.35,202.34,80.5]
[1759026363085,1.31587015,202.35,202.34,81.17]
[1759026366209,4.05346249,202.38,202.34,81.17]
[1759026366401,3.33346249,202.39,202.35,0.67]
[1759026366575,0.72,202.41,202.35,0.67]
[1759026366576,1.31587015,202.36,202.35,0.67]
[1759026366990,1.31587015,202.36,202.35,38.53]
[1759026369900,1.31587015,202.36,202.35,0.67]
[1759026370101,1.31587015,202.36,202.35,38.53]
[1759026371201,1.31587015,202.36,202.35,43.47192719]
[1759026371496,1.31587015,202.36,202.35,123.97192719]
[1759026371884,1.31587015,202.37,202.35,86.11192719]
[1759026372077,1.31587015,202.37,202.36,38.56]
[1759026372400,1.31587015,202.37,202.36,119.06]
[1759026372598,3.33346249,202.42,202.36,119.06]
[1759026372805,1.31587015,202.4,202.37,5.64144388]
[1759026373100,1.31587015,202.4,202.38,38.56]
[1759026373285,1.31587015,202.4,202.39,0.7]
[1759026374002,1.31587015,202.4,202.39,38.56]
[1759026374983,1.31587015,202.4,202.39,0.7]
[1759026375189,1.31587015,202.4,202.39,38.56]
[1759026375590,3.33346249,202.43,202.39,43.50095101]
[1759026375795,1.31587015,202.4,202.39,37.86]
[1759026376389,1.31587015,202.4,202.39,38.56]
[1759026377909,1.31587015,202.4,202.39,119.06]
[1759026379990,4.00346249,202.42,202.39,80.5]
[1759026380186,1.31587015,202.4,202.39,80.5]
[1759026382502,46.84142876,202.46,202.39,86.13095558]
[1759026382503,3.33346249,202.45,202.39,86.13095558]
[1759026382698,1.31587015,202.4,202.39,126.63441807]
[1759026382904,3.33346249,202.45,202.39,58.48680702]
[1759026383215,1.31587015,202.45,202.4,38.57]
[1759026383407,3.33346249,202.48,202.4,38.57]
[1759026383704,1.31587015,202.43,202.41,4.02346249]
[1759026383905,1.31587015,202.43,202.42,37.9]
[1759026384110,1.31587015,202.43,202.42,38.59]
[1759026384316,1.31587015,202.44,202.42,38.59]
[1759026384513,1.31587015,202.44,202.43,38.59]
[1759026384894,0.67,202.48,202.43,4.02346249]
[1759026385116,1.31587015,202.44,202.43,41.92346249]
[1759026385623,1.31587015,202.44,202.43,84.52346249]
[1759026385794,1.31587015,202.44,202.43,81.19]
[1759026386705,2.72469728,202.44,202.37,81.19]
[1759026386901,2.05469728,202.39,202.37,127.3942814]
[1759026387104,13.51455232,202.49,202.37,91.54897868]
[1759026387304,9.4617148,202.49,202.38,40.01469728]
[1759026387609,2.05469728,202.44,202.39,0.69]
[1759026387913,2.05469728,202.45,202.4,37.96]
[1759026388226,2.05469728,202.44,202.41,0.69]
[1759026388398,2.05469728,202.44,202.42,37.96]
[1759026388599,2.05469728,202.44,202.43,0.69]
[1759026388800,0.67,202.49,202.43,0.69]
[1759026389008,2.05469728,202.44,202.43,0.69]
[1759026390125,2.05469728,202.44,202.42,123.40022284]
[1759026390126,2.05469728,202.44,202.42,80.5]
[1759026390333,2.72469728,202.43,202.42,80.5]
[1759026391018,2.72469728,202.43,202.39,80.5]
[1759026391219,2.05469728,202.4,202.39,80.5]
[1759026391603,2.05469728,202.4,202.39,81.19]
[1759026393926,0.67,202.43,202.39,81.19]
[1759026394223,2.05469728,202.4,202.39,81.19]
[1759026394536,2.05469728,202.4,202.39,80.5]
[1759026395127,2.05469728,202.4,202.39,81.19]
[1759026395297,2.05469728,202.4,202.39,80.5]
[1759026396204,9.72020216,202.4,202.37,4.93978746]
[1759026396413,9.72020216,202.4,202.36,80.5]
[1759026396414,2.05469728,202.38,202.36,80.5]
[1759026396717,2.05469728,202.37,202.36,80.5]
[1759026397103,2.05469728,202.37,202.34,0.69]
[1759026397104,2.05469728,202.37,202.34,80.5]
[1759026397297,2.05469728,202.35,202.34,80.5]
[1759026397522,2.72469728,202.35,202.31,6.99550488]
[1759026397712,2.05469728,202.32,202.3,38.67]
[1759026397918,2.05469728,202.31,202.3,38.67]
[1759026401162,2.05469728,202.31,202.3,119.17]
[1759026401431,2.05469728,202.31,202.3,81.19]
[1759026401730,2.05469728,202.31,202.3,124.11178214]
[1759026402310,2.05469728,202.31,202.3,86.13178214]
[1759026402642,2.05469728,202.31,202.3,124.11178214]
[1759026403638,2.05469728,202.31,202.3,124.09178214]
[1759026404134,2.05469728,202.31,202.3,119.15]
[1759026404432,2.05469728,202.31,202.3,81.19]
[1759026404606,2.05469728,202.31,202.3,119.15]
[1759026404806,2.05469728,202.31,202.3,81.19]
[1759026405033,2.05469728,202.31,202.3,119.15]
[1759026405339,2.05469728,202.31,202.3,86.13178214]
[1759026405534,2.05469728,202.31,202.3,119.15]
[1759026405714,2.05469728,202.31,202.3,81.19]
[1759026405912,2.05469728,202.31,202.3,119.15]
[1759026408331,2.05469728,202.31,202.3,81.19]
[1759026408531,2.05469728,202.31,202.3,124.09178214]
[1759026408836,2.05469728,202.31,202.3,119.15]
[1759026409034,2.05469728,202.31,202.3,81.19]
[1759026409220,2.05469728,202.31,202.3,119.13]
[1759026409735,2.05469728,202.31,202.3,81.19]
[1759026409941,2.05469728,202.31,202.3,119.13]
[1759026410130,2.05469728,202.33,202.3,86.13315373]
[1759026410327,2.05469728,202.33,202.31,0.72]
[1759026410816,2.05469728,202.33,202.3,85.44315373]
[1759026410817,2.05469728,202.33,202.32,44.93561473]
[1759026411338,2.05469728,202.33,202.32,45.65561473]
[1759026411844,2.05469728,202.33,202.32,7.71561473]
[1759026412140,2.05469728,202.33,202.32,45.65561473]
[1759026412925,2.05469728,202.33,202.32,126.15561473]
[1759026414544,2.05469728,202.33,202.32,88.21561473]
[1759026414844,2.05469728,202.33,202.32,119.16]
[1759026415043,2.05469728,202.33,202.32,124.1012336]
[1759026415739,2.72469728,202.33,202.32,80.5]
[1759026415943,2.72469728,202.33,202.32,118.44]
[1759026416127,2.05469728,202.33,202.32,80.5]
[1759026421447,7.66711807,202.33,202.32,80.5]
[1759026422340,20.02317006,202.33,202.26,80.5]
[1759026422651,2.05469728,202.27,202.26,80.5]
[1759026424253,2.05469728,202.27,202.25,80.5]
[1759026424440,2.05469728,202.26,202.25,80.5]
[1759026426641,2.05469728,202.26,202.2,4.94556357]
[1759026426642,2.72469728,202.26,202.2,0.72]
[1759026426837,2.05469728,202.21,202.2,9.7030943]
[1759026427040,2.05469728,202.22,202.2,47.6830943]
[1759026427329,2.05469728,202.21,202.19,6.0942694]
[1759026427548,2.05469728,202.2,202.19,44.0742694]
[1759026427736,2.05469728,202.2,202.18,0.92]
[1759026427932,2.05469728,202.2,202.18,38.9]
[1759026428134,2.05469728,202.2,202.19,0.72]
[1759026428557,2.05469728,202.21,202.19,0.72]
[1759026431963,2.05469728,202.2,202.19,0.72]
[1759026432162,2.05469728,202.2,202.18,5.14417878]
[1759026432458,2.05469728,202.2,202.19,0.65]
[1759026434351,0.66,202.23,202.19,0.65]
[1759026434352,0.66,202.26,202.19,43.55584301]
[1759026434559,2.05469728,202.25,202.2,0.65]
[1759026434745,2.05469728,202.26,202.21,37.98]
[1759026434931,2.05469728,202.26,202.22,5.594931]
[1759026435134,2.05469728,202.25,202.23,0.65]
[1759026436965,2.05469728,202.24,202.22,14.88058332]
[1759026437147,2.71469728,202.23,202.2,80.5]
[1759026437349,2.05469728,202.21,202.2,80.5]
[1759026442873,2.14963329,202.21,202.2,80.5]
[1759026446369,2.14963329,202.21,202.2,81.17]
[1759026446549,1.41287203,202.21,202.2,81.17]
[1759026447272,0.09493601,202.21,202.2,81.17]
[1759026447465,0.09493601,202.21,202.2,86.11559841]
[1759026449361,0.09493601,202.21,202.2,88.09977461]
[1759026451953,0.09493601,202.21,202.2,124.09559841]
[1759026456466,0.71,202.31,202.23,80.20764566]
[1759026456669,1.31793602,202.28,202.24,37.98]
[1759026456871,1.31793602,202.25,202.23,214.90764566]
[1759026457069,0.71,202.25,202.24,38.0]
[1759026457368,0.71,202.27,202.24,118.20764566]
[1759026457767,4.03659629,202.3,202.24,118.20764566]
[1759026457978,0.71,202.29,202.24,118.20764566]
[1759026458171,1.31793602,202.25,202.24,118.87764566]
[1759026459281,1.31793602,202.25,202.24,118.20764566]
[1759026459472,1.31793602,202.25,202.24,118.87764566]
[1759026459669,1.31793602,202.26,202.24,118.87764566]
[1759026459867,1.31793602,202.26,202.25,0.67]
[1759026461077,0.71,202.3,202.25,5.61437577]
[1759026461287,1.31793602,202.27,202.26,0.67]
[1759026461786,1.31793602,202.27,202.25,85.15202143]
[1759026461965,1.31793602,202.27,202.25,85.82202143]
[1759026462483,1.31793602,202.27,202.26,42.94413131]
[1759026463061,1.31793602,202.27,202.25,123.82201544]
[1759026463264,1.31793602,202.26,202.25,123.15201544]
[1759026463770,1.31793602,202.26,202.25,123.82201544]
[1759026465882,1.31793602,202.26,202.25,118.87764566]
[1759026466099,1.31793602,202.26,202.25,118.20764566]
[1759026466267,1.31793602,202.26,202.25,80.20764566]
[1759026466471,2.02793602,202.26,202.25,80.20764566]
[1759026468488,1.31793602,202.26,202.25,80.20764566]
[1759026469069,2.02793602,202.26,202.25,80.20764566]
[1759026469489,1.31793602,202.26,202.25,80.20764566]
[1759026471096,2.03793602,202.26,202.25,80.20764566]
[1759026476497,1.31793602,202.26,202.25,80.20764566]
[1759026477590,2.03793602,202.26,202.25,80.20764566]
[1759026479391,5.35818486,202.26,202.25,80.20764566]
[1759026479591,2.03793602,202.26,202.25,80.20764566]
[1759026479890,1.31793602,202.26,202.25,80.20764566]
[1759026480700,2.03793602,202.26,202.25,80.20764566]
[1759026481229,2.03793602,202.26,202.21,80.20764566]
[1759026481503,1.31793602,202.22,202.21,80.20764566]
[1759026481711,1.31793602,202.22,202.19,0.67]
[1759026481909,1.31793602,202.2,202.18,118.36764566]
[1759026482599,1.31793602,202.2,202.19,0.67]
[1759026482998,1.4072749,202.2,202.19,0.67]
[1759026487217,1.4072749,202.2,202.19,80.87764566]
[1759026493403,0.08933888,202.2,202.19,80.87764566]
[1759026493726,1.4072749,202.2,202.19,80.87764566]
[1759026499444,2.1072749,202.2,202.18,0.2]
[1759026499739,6.5896801,202.19,202.18,0.2]
[1759026500113,20.88527411,202.19,202.15,0.2]
[1759026500310,6.26451298,202.16,202.15,0.2]
[1759026500704,6.92451298,202.16,202.15,0.2]
[1759026501636,58.46010699,202.16,202.15,0.2]
[1759026501935,20.52010699,202.16,202.15,0.2]
[1759026502307,58.46010699,202.16,202.15,0.2]
[1759026502919,58.55293459,202.16,202.15,0.2]
[1759026506260,13.59559401,202.15,202.13,0.2]
[1759026506534,1.31793602,202.14,202.13,0.2]
[1759026506717,39.91793602,202.14,202.13,0.2]
[1759026507236,15.57353003,202.14,202.13,0.2]
[1759026507423,53.51353003,202.14,202.13,0.2]
[1759026507734,58.46059641,202.14,202.13,0.2]
[1759026508630,59.20477286,202.14,202.13,0.2]
[1759026511836,21.26477286,202.14,202.13,0.2]
[1759026512010,59.20477286,202.14,202.13,0.2]
[1759026513130,21.26477286,202.14,202.13,0.2]
[1759026513333,59.20477286,202.14,202.13,0.2]
[1759026513548,21.26477286,202.14,202.13,0.2]
[1759026513841,58.54477286,202.14,202.13,0.2]
[1759026514148,53.59770648,202.14,202.13,0.2]
[1759026514639,53.59770648,202.14,202.13,0.86]
[1759026514838,15.65770648,202.14,202.13,0.2]
[1759026515034,53.59770648,202.14,202.13,0.2]
[1759026515920,15.65770648,202.14,202.13,0.2]
[1759026516116,53.59770648,202.14,202.13,0.2]
[1759026518844,59.20477286,202.14,202.13,0.2]
[1759026519523,54.25770648,202.14,202.13,0.2]
[1759026519722,53.59770648,202.14,202.13,0.2]
[1759026521041,59.20477286,202.14,202.13,0.2]
[1759026522626,20.60477286,202.14,202.13,0.2]
[1759026522822,58.64547938,202.14,202.13,0.86]
[1759026523350,58.64547938,202.14,202.13,0.2]
[1759026523650,53.698413,202.14,202.13,0.2]
[1759026523844,0.10070652,202.14,202.13,0.86]
[1759026524050,2.16281899,202.14,202.13,0.86]
[1759026524246,0.10070652,202.14,202.13,0.86]
[1759026525021,0.10070652,202.14,202.13,5.80731113]
[1759026529053,0.10070652,202.14,202.13,86.01495679]
[1759026531150,0.10070652,202.14,202.13,81.06764566]
[1759026542840,0.2064462,202.14,202.13,81.06764566]
[1759026543973,0.10573968,202.14,202.13,81.06764566]
[1759026544272,0.10573968,202.14,202.13,118.98764566]
[1759026545046,2.16785215,202.14,202.13,118.98764566]
[1759026546468,2.16785215,202.14,202.13,81.06764566]
[1759026547064,2.16785215,202.14,202.13,118.98764566]
[1759026547669,2.16785215,202.14,202.13,81.06764566]
[1759026548055,2.16785215,202.14,202.13,118.98764566]
[1759026548245,2.16785215,202.14,202.13,80.40764566]
[1759026548643,2.85785215,202.14,202.13,80.40764566]
[1759026549060,2.16785215,202.14,202.13,80.40764566]
[1759026550673,2.16785215,202.14,202.13,81.11764566]
[1759026551150,0.10573968,202.14,202.13,81.11764566]
[1759026551350,0.10573968,202.14,202.13,119.03764566]
[1759026551560,0.10573968,202.14,202.13,86.06495679]
[1759026551959,0.10573968,202.14,202.13,123.98495679]
[1759026552580,0.10573968,202.14,202.13,86.06495679]
[1759026552874,0.10573968,202.14,202.13,123.98495679]
[1759026553476,0.10573968,202.14,202.13,86.06495679]
[1759026553776,0.10573968,202.14,202.13,123.98495679]
[1759026555467,2.16785215,202.14,202.13,80.40764566]
[1759026555665,2.16785215,202.14,202.13,118.32764566]
[1759026556172,2.16785215,202.14,202.13,119.03764566]
[1759026558458,0.10573968,202.14,202.13,123.98495679]
[1759026561678,2.16755892,202.15,202.14,80.10190598]
[1759026561866,2.16755892,202.15,202.14,80.82190598]
[1759026562065,2.16755892,202.15,202.14,118.74190598]
[1759026562467,2.16755892,202.15,202.14,85.76897236]
[1759026562662,2.16755892,202.15,202.14,125.85653128]
[1759026562866,2.27264519,202.15,202.14,87.93653128]
[1759026563064,2.27264519,202.15,202.14,125.85653128]
[1759026563470,2.27264519,202.15,202.14,87.93653128]
[1759026563677,2.27264519,202.15,202.14,125.85653128]
[1759026563988,2.16719874,202.15,202.14,87.93653128]
[1759026564166,0.10508627,202.15,202.14,125.85653128]
[1759026565285,0.09289399,202.16,202.14,103.59423776]
[1759026565601,0.09289399,202.16,202.15,16.87238864]
[1759026565760,0.09214555,202.18,202.17,13.59559401]
[1759026565960,0.10134538,202.19,202.17,54.0723397]
[1759026566179,0.10134538,202.19,202.18,38.64]
[1759026566379,0.09993779,202.2,202.18,40.70211247]
[1759026566681,3.32713952,202.3,202.2,13.59559401]
[1759026566682,2.06211247,202.28,202.2,13.59559401]
[1759026566863,2.06211247,202.28,202.2,53.57770648]
[1759026567070,2.06211247,202.28,202.2,54.29770648]
[1759026567287,2.06211247,202.28,202.2,59.24330489]
[1759026568574,1.31691446,202.28,202.2,58.49810688]
[1759026569989,1.98691446,202.28,202.2,58.49810688]
[1759026570587,1.98691446,202.28,202.2,273.30001286]
[1759026571990,0.67,202.27,202.2,273.30001286]
[1759026572887,0.67,202.27,202.2,275.28379544]
[1759026574685,9.34,202.36,202.25,79.9124494]
[1759026574686,0.67,202.3,202.25,79.9124494]
[1759026574865,0.67,202.3,202.26,38.62]
[1759026575065,0.67,202.3,202.26,118.5324494]
[1759026575273,0.67,202.3,202.27,1.98358583]
[1759026575465,0.67,202.3,202.28,37.9]
[1759026575873,0.67,202.3,202.29,1.98348746]
[1759026579493,0.67,202.32,202.29,81.89593686]
[1759026579789,0.67,202.31,202.3,37.9]
[1759026580485,0.67,202.31,202.29,81.89593686]
[1759026580686,0.67,202.31,202.3,37.9]
[1759026581393,0.67,202.31,202.3,41.93222433]
[1759026581892,0.67,202.31,202.3,37.9]
[1759026582189,0.67,202.35,202.3,43.56315373]
[1759026582489,0.67,202.34,202.3,85.57560313]
[1759026582692,0.67,202.34,202.31,37.9]
[1759026583063,0.67,202.34,202.32,1.98329078]
[1759026583263,0.67,202.34,202.32,81.89574018]
[1759026583476,1.98691446,202.34,202.32,79.9124494]
[1759026583672,1.98691446,202.34,202.33,1.98319244]
[1759026583895,0.67,202.34,202.33,1.98319244]
[1759026586000,1.31691446,202.35,202.33,1.98319244]
[1759026586375,1.98691446,202.35,202.33,1.98319244]
[1759026588283,1.98691446,202.35,202.33,81.89564184]
[1759026590689,1.31691446,202.34,202.33,81.89564184]
[1759026592503,2.03691446,202.34,202.33,79.9124494]
[1759026600492,1.31691446,202.34,202.33,80.6124494]
[1759026600688,0.1,202.36,202.33,80.6124494]
[1759026600906,1.31691446,202.34,202.33,79.9124494]
[1759026601103,1.31691446,202.34,202.33,84.60290478]
[1759026601410,1.31691446,202.34,202.33,79.9124494]
[1759026603207,0.1,202.36,202.33,79.9124494]
[1759026603410,1.41691446,202.36,202.34,0.7]
[1759026603600,0.1,202.36,202.34,43.52202594]
[1759026603913,0.1,202.36,202.35,38.58]
[1759026604128,0.1,202.36,202.35,120.47534691]
[1759026605518,0.1,202.36,202.35,125.4172792]
[1759026606409,0.1,202.36,202.35,126.73419366]
[1759026607114,0.1,202.36,202.35,125.4172792]
[1759026607298,0.1,202.36,202.35,140.32978767]
[1759026608212,0.1,202.44,202.4,79.8124494]
[1759026608398,0.1,202.44,202.4,117.6924494]
[1759026608598,0.1,202.44,202.41,38.58]
[1759026609115,0.1,202.44,202.42,0.7]
[1759026609316,0.1,202.44,202.42,37.88]
[1759026609495,0.1,202.44,202.42,38.58]
[1759026609693,0.1,202.44,202.43,0.67]
[1759026609896,0.1,202.44,202.43,38.55]
[1759026610592,0.1,202.44,202.43,39.86691446]
[1759026610797,0.1,202.44,202.43,1.98691446]
[1759026611012,0.1,202.44,202.43,39.86691446]
[1759026611200,0.1,202.44,202.43,39.88691446]
[1759026611809,0.1,202.44,202.43,44.82689371]
[1759026612207,0.1,202.44,202.43,179.52689371]